lending/lending_fUSD_20240509
["ID","MTS","AMOUNT","RATE_DAILY","PERIOD"]
[326727442,1715284301665,-4123.8,0.00041917,33]
[326727443,1715284301674,-150.0,0.00041917,33]
[326727444,1715284301683,-2160.59,0.00041917,33]
[326727445,1715284301693,-632.78,0.00041917,33]
[326727446,1715284301703,-500.0,0.00041917,33]
[326727447,1715284301714,-3065.02,0.00041917,33]
[326727448,1715284301725,-500.0,0.00041917,33]
[326727449,1715284301736,-676.57,0.00041917,33]
[326727450,1715284301748,-500.0,0.00041917,33]
[326727451,1715284301759,-618.5,0.00041917,33]
[326727452,1715284301769,-500.0,0.00041917,33]
[326727453,1715284301779,-500.0,0.00041917,33]
[326727454,1715284301788,-800.981742,0.00041917,14]
[326727455,1715284301798,-819.73,0.00041917,33]
[326727456,1715284301808,-6434.98,0.00041917,33]
[326727457,1715284301817,-550.44645879,0.00041917,33]
[326727458,1715284301827,-500.0,0.00041917,33]
[326727459,1715284301837,-500.0,0.00041917,33]
[326727460,1715284301846,-6923.54,0.00041917,33]
[326727461,1715284301856,-500.0,0.00041917,33]
[326727462,1715284301866,-800.981742,0.00041917,14]
[326727463,1715284301876,-500.0,0.00041917,33]
[326727464,1715284301886,-2081.65,0.00041917,33]
[326727465,1715284301896,-523.84277222,0.00041917,33]
[326727466,1715284301907,-500.0,0.00041917,33]
[326727467,1715284301916,-4216.22,0.00041917,33]
[326727468,1715284301929,-702.41,0.00041917,33]
[326727469,1715284301939,-1442.87,0.00041917,33]
[326727470,1715284301949,-500.0,0.00041917,33]
[326727471,1715284301959,-500.0,0.00041917,33]
[326727472,1715284301970,-598.51,0.00041917,33]
[326727473,1715284301979,-615.16,0.00041917,33]
[326727474,1715284301989,-500.0,0.00041917,33]
[326727475,1715284302000,-500.0,0.00041917,33]
[326727476,1715284302011,-500.0,0.00041917,33]
[326727477,1715284302021,-500.0,0.00041917,33]
[326727478,1715284302030,-500.0,0.00041917,33]
[326727479,1715284302040,-726.2,0.00041917,33]
[326727480,1715284302049,-500.0,0.00041917,33]
[326727481,1715284302059,-3938.3,0.00041917,33]
[326727482,1715284302068,-500.0,0.00041917,33]
[326727483,1715284302078,-500.0,0.00041917,33]
[326727484,1715284302087,-500.0,0.00041917,33]
[326727485,1715284302097,-2637.11,0.00041917,33]
[326727486,1715284302106,-775.86,0.00041917,33]
[326727487,1715284302116,-500.0,0.00041917,33]
[326727488,1715284302126,-516.74875705,0.00041917,33]
[326727489,1715284302135,-1143.77,0.00041917,33]
[326727490,1715284302145,-9711.43,0.00041917,33]
[326727491,1715284302154,-500.0,0.00041917,33]
[326727492,1715284302164,-1076.04,0.00041917,33]
[326727493,1715284302174,-1066.39,0.00041917,33]
[326727494,1715284302184,-500.0,0.00041917,33]
[326727495,1715284302194,-508.62219479,0.00041917,33]
[326727496,1715284302204,-2734.69,0.00041917,33]
[326727497,1715284302214,-566.88260376,0.00041917,33]
[326727498,1715284302223,-500.0,0.00041917,33]
[326727499,1715284302233,-1322.93,0.00041917,33]
[326727500,1715284302243,-509.9164874,0.00041917,33]
[326727501,1715284302253,-4590.19,0.00041917,33]
[326727502,1715284302263,-500.0,0.00041917,33]
[326727503,1715284302273,-4906.66,0.00041917,33]
[326727504,1715284302283,-1603.53,0.00041917,33]
[326727505,1715284302292,-508.7,0.00041917,33]
[326727506,1715284302302,-500.0,0.00041917,33]
[326727507,1715284302311,-500.0,0.00041917,33]
[326727508,1715284302321,-1354.33,0.00041917,33]
[326727509,1715284302331,-2889.36,0.00041917,33]
[326727510,1715284302341,-633.93391439,0.00041917,33]
[326727511,1715284302350,-500.0,0.00041917,33]
[326727512,1715284302360,-583.44,0.00041917,33]
[326727513,1715284302369,-2704.13,0.00041917,33]
[326727514,1715284302379,-503.6672411,0.00041917,33]
[326727515,1715284302388,-509.78,0.00041917,33]
[326727516,1715284302398,-542.36583233,0.00041917,33]
[326727517,1715284302408,-1459.15,0.00041917,33]
[326727518,1715284302417,-4301.21,0.00041917,33]
[326727519,1715284302426,-500.0,0.00041917,33]
[326727521,1715284302435,-4353.39,0.00041917,33]
[326727522,1715284302445,-500.0,0.00041917,33]
[326727523,1715284302455,-500.0,0.00041917,33]
[326727524,1715284302465,-620.57914569,0.00041917,33]
[326727525,1715284302475,-1096.66,0.00041917,33]
[326727526,1715284302485,-500.0,0.00041917,33]
[326727527,1715284302495,-706.1,0.00041917,33]
[326727528,1715284302504,-15650.65,0.00041917,33]
[326727529,1715284302514,-2454.38,0.00041917,33]
[326727530,1715284302523,-2644.57,0.00041917,33]
[326727531,1715284302532,-500.0,0.00041917,33]
[326727532,1715284302541,-500.0,0.00041917,33]
[326727533,1715284302551,-500.0,0.00041917,33]
[326727534,1715284302560,-21522.74,0.00041917,33]
[326727535,1715284302570,-1410.48,0.00041917,33]
[326727536,1715284302579,-500.0,0.00041917,33]
[326727537,1715284302589,-500.0,0.00041917,33]
[326727538,1715284302598,-500.0,0.00041917,33]
[326727539,1715284302609,-500.0,0.00041917,33]
[326727540,1715284302619,-500.0,0.00041917,33]
[326727541,1715284302630,-4403.23,0.00041917,33]
[326727542,1715284302639,-6367.23,0.00041917,33]
[326727543,1715284302648,-500.0,0.00041917,33]
[326727544,1715284302659,-841.22,0.00041917,33]
[326727545,1715284302668,-500.0,0.00041917,33]
[326727546,1715284302677,-4078.63,0.00041917,33]
[326727547,1715284302688,-500.0,0.00041917,33]
[326727548,1715284302697,-500.0,0.00041917,33]
[326727549,1715284302707,-774.87,0.00041917,33]
[326727550,1715284302716,-3844.23,0.00041917,33]
[326727551,1715284302725,-2386.82,0.00041917,33]
[326727552,1715284302734,-500.0,0.00041917,33]
[326727553,1715284302743,-500.0,0.00041917,30]
[326727554,1715284302752,-2718.17,0.00041917,33]
[326727555,1715284302761,-500.0,0.00041917,33]
[326727556,1715284302770,-500.0,0.00041917,33]
[326727557,1715284302779,-500.0,0.00041917,33]
[326727558,1715284302788,-772.02,0.00041917,33]
[326727559,1715284302797,-2250.4,0.00041917,33]
[326727560,1715284302806,-9087.17,0.00041917,33]
[326727562,1715284302815,-500.0,0.00041917,33]
[326727563,1715284302824,-7931.89,0.00041917,33]
[326727564,1715284302833,-500.0,0.00041917,2]
[326727565,1715284302843,-534.25522643,0.00041917,33]
[326727566,1715284302852,-1782.33,0.00041917,33]
[326727567,1715284302861,-2236.99,0.00041917,33]
[326727568,1715284302870,-500.0,0.00041917,33]
[326727569,1715284302880,-500.0,0.00041917,33]
[326727570,1715284302890,-500.0,0.00041917,33]
[326727571,1715284302899,-500.0,0.00041917,33]
[326727572,1715284302910,-500.0,0.00041917,33]
[326727573,1715284302922,-2866.63,0.00041917,33]
[326727574,1715284302936,-500.0,0.00041917,33]
[326727575,1715284302946,-957.24,0.00041917,33]
[326727576,1715284302955,-500.0,0.00041917,33]
[326727577,1715284302966,-500.0,0.00041917,33]
[326727578,1715284302975,-1727.6,0.00041917,33]
[326727579,1715284302986,-500.0,0.00041917,33]
[326727580,1715284302996,-702.33,0.00041917,33]
[326727581,1715284303009,-500.0,0.00041917,33]
[326727582,1715284303020,-500.0,0.00041917,33]
[326727583,1715284303029,-5109.4,0.00041917,33]
[326727584,1715284303185,-450.0,0.0004197,3]
[326727585,1715284303195,-500.0,0.00041975,6]
[326727586,1715284303204,-500.0,0.00041975,6]
[326727587,1715284303214,-500.0,0.00041975,6]
[326727588,1715284303224,-500.0,0.00041975,6]
[326727589,1715284303233,-500.0,0.00041975,6]
[326727590,1715284303242,-500.0,0.00041975,6]
[326727591,1715284303252,-552.0,0.00041992,30]
[326727592,1715284303262,-311.0,0.00041992,30]
[326727593,1715284303271,-844.0,0.00041992,30]
[326727594,1715284303282,-224.14699033,0.00041999,7]
[326727595,1715284303291,-224.14699033,0.00041999,7]
[326727596,1715284303301,-50000.0,0.00042,22]
[326727597,1715284303310,-8794.74462764,0.00042,2]
[326727598,1715284303320,-570.0,0.00042,3]
[326727599,1715284303329,-20000.0,0.00042,5]
[326727600,1715284303338,-5000.0,0.00042,7]
[326727601,1715284303348,-260.0,0.00042,14]
[326727602,1715284303357,-57982.40779383,0.00042,7]
[326727603,1715284303367,-400.0,0.00042,6]
[326727604,1715284303377,-749722.07070324,0.00042,35]
[326727605,1715284303387,-541.0465206,0.00042,120]
[326727606,1715284303396,-161800.71945511,0.00042,35]
[326727607,1715284304046,-3054.89397799,0.00042,35]
[326727608,1715284304058,-4921.58655648,0.00042,35]
[326727609,1715284304069,-32935.320011,0.00042,35]
[326727610,1715284304080,-27057.64712455,0.00042,35]
[326727611,1715284304091,-598.05755962,0.00042,35]
[326727612,1715284304104,-453.93,0.00042,35]
[326727613,1715284304115,-973.92705919,0.00042,35]
[326727614,1715284304128,-265.760515,0.00042,35]
[326727615,1715284304139,-6894.8,0.00042,35]
[326727616,1715284305217,-315.00830395,0.00028506,2]
[326727617,1715284305227,-311.69359805,0.00032876,2]
[326727618,1715284305239,-1487.20640195,0.00032876,2]
[326727619,1715284305248,-1798.9,0.00032876,2]
[326727620,1715284305258,-1798.9,0.00032876,2]
[326727621,1715284305267,-1798.9,0.00032876,2]
[326727622,1715284305276,-1798.9,0.00032876,2]
[326727623,1715284305286,-1798.9,0.00032876,2]
[326727624,1715284305296,-1798.9,0.00032876,2]
[326727625,1715284305305,-1798.9,0.00032876,2]
[326727626,1715284305314,-1798.9,0.00032876,2]
[326727627,1715284305324,-1798.9,0.00032876,2]
[326727628,1715284305333,-600.0,0.00035554,10]
[326727629,1715284305342,-500.0,0.00036102,10]
[326727630,1715284305352,-600.0,0.00036102,10]
[326727631,1715284305361,-500.0,0.00037198,10]
[326727632,1715284305371,-500.0,0.00041095,30]
[326727633,1715284305380,-590.84764305,0.00042,35]
[326727634,1715284305391,-353464.94188448,0.00042,35]
[326727635,1715284305403,-3138.05679187,0.00042,35]
[326727636,1715284306869,-315.00830395,0.00031442,2]
[326727637,1715284306885,-447.13845005,0.00032876,2]
[326727638,1715284306905,-1351.76154995,0.00032876,2]
[326727639,1715284306921,-1798.9,0.00032876,2]
[326727640,1715284306940,-1798.9,0.00032876,2]
[326727641,1715284306956,-1798.9,0.00032876,2]
[326727642,1715284306972,-1798.9,0.00032876,2]
[326727643,1715284306987,-1798.9,0.00032876,2]
[326727644,1715284307003,-1798.9,0.00032876,2]
[326727645,1715284307024,-1798.9,0.00032876,2]
[326727646,1715284307039,-600.0,0.0003665,10]
[326727647,1715284307054,-500.0,0.00038294,10]
[326727648,1715284307068,-500.0,0.00041095,30]
[326727649,1715284307083,-500.11,0.00041095,30]
[326727650,1715284307097,-500.0,0.00041095,30]
[326727651,1715284307112,-1895.03,0.00041095,30]
[326727652,1715284307127,-500.0,0.00041369,31]
[326727653,1715284307142,-274.785957,0.00041369,14]
[326727654,1715284307156,-500.0,0.00041369,31]
[326727655,1715284307171,-500.11,0.00041369,31]
[326727656,1715284307186,-1895.03,0.00041369,31]
[326727657,1715284307200,-500.0,0.00041643,32]
[326727658,1715284307214,-500.0,0.00041643,32]
[326727659,1715284307227,-500.11,0.00041643,32]
[326727660,1715284307241,-500.0,0.00041917,33]
[326727661,1715284307255,-500.11,0.00041917,33]
[326727662,1715284307270,-597.54411581,0.00041917,33]
[326727663,1715284307284,-99693.1083772,0.00042,35]
[326727664,1715284307302,-104113.511,0.00042,35]
[326727665,1715284307318,-411.89818624,0.00042,35]
[326727694,1715285432044,-1727.25423775,0.00017225,2]
[326727696,1715285432054,-1966.96648996,0.00017226,2]
[326727698,1715285432065,-2860.88092348,0.00017226,2]
[326727700,1715285432076,-728.08319916,0.00017226,2]
[326727702,1715285432085,-73.28234852,0.00017227,2]
[326727719,1715285432241,-881.5656241,0.00017227,2]
[326727721,1715285432250,-90.31960379,0.00017227,2]
[326727723,1715285432262,-528.0483166,0.00017227,2]
[326727725,1715285432272,-750.52330383,0.00017228,2]
[326727727,1715285432286,-938.41528503,0.0001723,2]
[326727729,1715285432296,-487.90189379,0.00019075,3]
[326727732,1715285432307,-339.04706187,0.00019075,3]
[326727734,1715285432316,-164.21,0.00019178,2]
[326727736,1715285432326,-20.96693813,0.00020339,2]
[326727738,1715285432338,-5137.53228514,0.00020339,2]
[326727740,1715285432350,-1395.94038768,0.00020339,2]
[326727742,1715285432363,-562.43544538,0.00020339,2]
[326727744,1715285432376,-1266.7972655,0.00020339,2]
[326727747,1715285432387,-875.59927975,0.00020339,2]
[326727749,1715285432399,-673.46769444,0.00020339,2]
[326727814,1715285437804,-457.51021413,0.00020339,2]
[326727815,1715285437815,-1346.4643134,0.00020339,2]
[326727816,1715285437827,-11135.17822219,0.00020339,2]
[326727817,1715285437836,-1246.19502769,0.00020544,2]
[326727818,1715285437845,-533.77884656,0.00020544,2]
[326727819,1715285437854,-4736.48162627,0.00020544,2]
[326727820,1715285437864,-196230.60222963,0.00020544,2]
[326727821,1715285437874,-1900.0,0.00020544,2]
[326727823,1715285437883,-1787.2571842,0.00020544,2]
[326727824,1715285437893,-4421.03246962,0.00020545,2]
[326727825,1715285437902,-1163.12,0.00020546,2]
[326727826,1715285437911,-9999.99,0.00020546,2]
[326727827,1715285437920,-603.96,0.00020546,2]
[326727828,1715285437930,-499.99,0.00020546,2]
[326727829,1715285437939,-181.46,0.00023012,2]
[326727830,1715285437949,-826.94895566,0.000238,4]
[326727831,1715285437958,-1000.0,0.00023899,2]
[326727832,1715285437968,-9999.99,0.000239,2]
[326727833,1715285437978,-999.99,0.000239,2]
[326727834,1715285437987,-150.99,0.000239,2]
[326727835,1715285437997,-2516.0,0.000239,3]
[326727836,1715285438006,-23880.0,0.00024478,2]
[326727837,1715285438015,-4389.76127164,0.00025,2]
[326727838,1715285438025,-300.0,0.00026473,2]
[326727839,1715285438034,-185.82,0.00026573,2]
[326727840,1715285438043,-250.0,0.00027327,2]
[326727841,1715285438052,-300.0,0.00027397,2]
[326727842,1715285438062,-1852.42,0.00027669,2]
[326727843,1715285438071,-150.0,0.00027832,2]
[326727844,1715285438080,-202.87,0.00028176,2]
[326727845,1715285438090,-6049.95,0.00028289,30]
[326727846,1715285438099,-500.0,0.00028409,2]
[326727847,1715285438110,-7796.3,0.00028409,2]
[326727849,1715285438118,-163.89,0.00028867,2]
[326727851,1715285438127,-389.58,0.00029,2]
[326727853,1715285438136,-173.04,0.00029009,2]
[326727854,1715285438146,-200.0,0.0002905,2]
[326727855,1715285438155,-1500.0,0.0002914,2]
[326727856,1715285438164,-500.0,0.0002914,2]
[326727857,1715285438174,-225.58,0.00029215,2]
[326727858,1715285438183,-150.0,0.00029292,2]
[326727859,1715285438193,-185.82,0.00029894,2]
[326727860,1715285438202,-405.26692787,0.00029998,2]
[326727861,1715285438211,-5266.7635262,0.00029998,2]
[326727862,1715285438221,-167.58743393,0.00029999,2]
[326727863,1715285438230,-487.99073708,0.00029999,2]
[326727865,1715285438239,-10000.0,0.0003,15]
[326727867,1715285438248,-665.1824129,0.0003,4]
[326727869,1715285438258,-5681.44871975,0.0003,2]
[326727871,1715285438267,-2170.82789106,0.0003,10]
[326727873,1715285438277,-19366.7269474,0.0003,4]
[326727875,1715285438290,-13999.9998462,0.0003,4]
[326727877,1715285438300,-13999.9998462,0.0003,4]
[326727879,1715285438309,-997.46,0.000301,2]
[326727880,1715285438318,-389.58,0.000303,2]
[326727882,1715285438330,-3268.0722,0.00030721,2]
[326727883,1715285438339,-600.0,0.00030821,4]
[326727884,1715285438349,-363.89428258,0.000309,2]
[326727885,1715285438359,-150.0,0.000309,2]
[326727886,1715285438368,-202.47974789,0.00030992,15]
[326727887,1715285438377,-7612.22535169,0.00031,2]
[326727888,1715285438387,-165.91,0.00031355,2]
[326727889,1715285438396,-150.0,0.00031364,2]
[326727890,1715285438406,-151.0,0.00031448,2]
[326727891,1715285438417,-1011.52,0.00031465,2]
[326727892,1715285438426,-389.58,0.000315,2]
[326727893,1715285438435,-250.0,0.00031866,2]
[326727894,1715285438444,-2000.0,0.00031866,2]
[326727895,1715285438454,-152.0,0.00031996,2]
[326727896,1715285438463,-333.01810814,0.00032,4]
[326727897,1715285438472,-10304.4,0.00032121,2]
[326727898,1715285438481,-363.8942825,0.00032258,2]
[326727899,1715285438490,-152.78714435,0.0003229,2]
[326727900,1715285438499,-224.72,0.00032444,120]
[326727901,1715285438508,-153.0,0.00032544,2]
[326727902,1715285438518,-156.54295098,0.0003268,7]
[326727903,1715285438527,-389.58,0.000327,2]
[326727904,1715285438537,-591.22,0.00032716,2]
[326727905,1715285438546,-591.22,0.00032806,2]
[326727906,1715285438556,-250.0,0.00032876,14]
[326727907,1715285438565,-500.0,0.00032876,15]
[326727908,1715285438575,-297.31760661,0.00032876,16]
[326727909,1715285438584,-207.0,0.00032877,2]
[326727910,1715285438593,-322.22,0.00032877,2]
[326727911,1715285438602,-56274.78,0.00032877,2]
[326727912,1715285438613,-591.22,0.00032896,2]
[326727913,1715285438622,-756.0,0.000329,2]
[326727914,1715285438632,-7799.23448418,0.00032933,2]
[326727915,1715285438641,-591.22,0.00032985,2]
[326727916,1715285438650,-1527.049429,0.00033,2]
[326727917,1715285438660,-329.0,0.00033005,2]
[326727918,1715285438669,-591.22,0.00033075,2]
[326727919,1715285438678,-154.0,0.00033092,2]
[326727920,1715285438687,-591.22,0.00033165,2]
[326727921,1715285438696,-185.82,0.00033216,2]
[326727922,1715285438706,-591.22,0.00033254,2]
[326727923,1715285438715,-591.22,0.00033344,2]
[326727924,1715285438724,-329.0,0.00033345,2]
[326727925,1715285438733,-152.53780723,0.00033419,7]
[326727926,1715285438743,-591.22,0.00033434,2]
[326727927,1715285438752,-328.49,0.000335,2]
[326727928,1715285438762,-328.49,0.000335,2]
[326727929,1715285438771,-328.49,0.000335,2]
[326727930,1715285438781,-328.49,0.000335,2]
[326727931,1715285438790,-328.49,0.000335,2]
[326727932,1715285438799,-328.49,0.000335,2]
[326727933,1715285438809,-328.49,0.000335,2]
[326727934,1715285438819,-328.49,0.000335,2]
[326727935,1715285438840,-328.49,0.000335,2]
[326727936,1715285438850,-328.49,0.000335,2]
[326727937,1715285438861,-328.49,0.000335,2]
[326727938,1715285438870,-328.49,0.000335,2]
[326727939,1715285438880,-328.49,0.000335,2]
[326727940,1715285438890,-328.49,0.000335,2]
[326727941,1715285438900,-328.49,0.000335,2]
[326727942,1715285438911,-328.49,0.000335,2]
[326727943,1715285438921,-328.49,0.000335,2]
[326727944,1715285438930,-328.49,0.000335,2]
[326727945,1715285438939,-328.49,0.000335,2]
[326727946,1715285438949,-328.49,0.000335,2]
[326727947,1715285438958,-157.60469397,0.00033518,7]
[326727948,1715285438968,-591.22,0.00033524,2]
[326727949,1715285438978,-591.22,0.00033613,2]
[326727950,1715285438987,-416.82,0.00033616,2]
[326727951,1715285438997,-363.8942825,0.00033617,2]
[326727952,1715285439007,-150.0,0.00033635,3]
[326727953,1715285439017,-161.0,0.0003364,2]
[326727954,1715285439027,-202.87,0.00033655,2]
[326727955,1715285439037,-329.0,0.00033686,2]
[326727956,1715285439046,-591.22,0.00033703,2]
[326727957,1715285439056,-591.22,0.00033793,2]
[326727958,1715285439066,-591.22,0.00033883,2]
[326727959,1715285439077,-591.22,0.00033972,2]
[326727960,1715285439087,-329.0,0.00034026,2]
[326727961,1715285439096,-1797.02370836,0.00034026,2]
[326727962,1715285439108,-591.22,0.00034062,2]
[326727963,1715285439118,-591.22,0.00034152,2]
[326727964,1715285439128,-273.975,0.00034158,2]
[326727965,1715285439138,-157.60469397,0.00034173,7]
[326727966,1715285439148,-591.22,0.00034241,2]
[326727967,1715285439158,-591.22,0.00034331,2]
[326727968,1715285439168,-329.0,0.00034366,2]
[326727969,1715285439178,-591.22,0.00034421,2]
[326727970,1715285439189,-156.34710433,0.00034496,7]
[326727971,1715285439198,-329.0,0.00034706,2]
[326727972,1715285439208,-150.0,0.00034895,2]
[326727973,1715285439218,-151.0,0.00034938,2]
[326727974,1715285439229,-363.8942825,0.00034975,2]
[326727975,1715285439239,-329.0,0.00035047,2]
[326727976,1715285439249,-80047.451932,0.00035281,7]
[326727977,1715285439260,-302.0,0.00035526,4]
[326727978,1715285439270,-800.0,0.00035534,2]
[326727979,1715285439284,-800.0,0.00035562,2]
[326727980,1715285439294,-1000.0,0.00035565,2]
[326727981,1715285439304,-328.49,0.000356,3]
[326727982,1715285439314,-328.49,0.000356,3]
[326727983,1715285439323,-328.49,0.000356,3]
[326727984,1715285439335,-328.49,0.000356,3]
[326727985,1715285439345,-328.49,0.000356,3]
[326727986,1715285439357,-328.49,0.000356,3]
[326727987,1715285439367,-328.49,0.000356,3]
[326727988,1715285439377,-328.49,0.000356,3]
[326727989,1715285439387,-328.49,0.000356,3]
[326727990,1715285439397,-328.49,0.000356,3]
[326727991,1715285439407,-328.49,0.000356,3]
[326727992,1715285439416,-328.49,0.000356,3]
[326727993,1715285439426,-160.33257566,0.00035808,30]
[326727994,1715285439436,-207.0,0.00035877,2]
[326727995,1715285439446,-160.33257566,0.00036,30]
[326727996,1715285439456,-408.47070558,0.00036083,4]
[326727997,1715285439465,-240.9133084,0.00036083,4]
[326727998,1715285439475,-326.00629389,0.00036084,4]
[326727999,1715285439485,-500.0,0.00036102,10]
[326728000,1715285439495,-500.0,0.00036102,10]
[326728001,1715285439505,-500.0,0.00036102,10]
[326728002,1715285439515,-604.0,0.00036123,7]
[326728003,1715285439525,-160.33257566,0.00036192,30]
[326728004,1715285439535,-389.58,0.000362,2]
[326728005,1715285439545,-212.66855933,0.00036245,7]
[326728006,1715285439554,-363.8942825,0.00036334,2]
[326728007,1715285439563,-160.33257566,0.00036384,30]
[326728008,1715285439573,-185.82,0.00036538,2]
[326728009,1715285439583,-160.33257566,0.00036575,30]
[326728010,1715285439592,-500.0,0.0003665,10]
[326728011,1715285439602,-160.33257566,0.00036767,30]
[326728015,1715285439613,-160.33257566,0.00036959,30]
[326728018,1715285439623,-2236.0,0.00037,60]
[326728021,1715285439633,-1208.0,0.00037037,30]
[326728023,1715285439642,-185.88,0.00037055,120]
[326728024,1715285439652,-152.0,0.00037149,3]
[326728025,1715285439663,-160.33257566,0.00037151,30]
[326728026,1715285439672,-500.0,0.00037198,10]
[326728027,1715285439683,-500.0,0.00037198,10]
[326728028,1715285439693,-160.33257566,0.00037342,30]
[326728029,1715285439703,-155.0,0.00037477,4]
[326728030,1715285439713,-160.33257566,0.00037534,30]
[326728031,1715285439723,-328.49,0.000376,3]
[326728032,1715285439732,-328.49,0.000376,3]
[326728033,1715285439742,-328.49,0.000376,3]
[326728034,1715285439752,-328.49,0.000376,3]
[326728035,1715285439761,-328.49,0.000376,3]
[326728036,1715285439772,-328.49,0.000376,3]
[326728037,1715285439781,-328.49,0.000376,3]
[326728038,1715285439791,-328.49,0.000376,3]
[326728039,1715285439801,-328.49,0.000376,3]
[326728040,1715285439811,-328.49,0.000376,3]
[326728041,1715285439821,-328.49,0.000376,3]
[326728042,1715285439830,-328.49,0.000376,3]
[326728043,1715285439839,-328.49,0.000376,3]
[326728044,1715285439849,-328.49,0.000376,3]
[326728045,1715285439859,-328.49,0.000376,3]
[326728046,1715285439869,-328.49,0.000376,3]
[326728047,1715285439878,-328.49,0.000376,3]
[326728048,1715285439888,-389.58,0.000376,2]
[326728049,1715285439898,-363.8942825,0.00037692,2]
[326728050,1715285439913,-160.33257566,0.00037726,30]
[326728051,1715285439923,-500.0,0.00037746,10]
[326728052,1715285439933,-423.1768076,0.000378,2]
[326728053,1715285439943,-160.33257566,0.00037918,30]
[326728054,1715285439953,-212.66855934,0.00038053,7]
[326728055,1715285439964,-500.0,0.00038294,10]
[326728056,1715285439974,-500.0,0.00038294,10]
[326728057,1715285439985,-1000.0,0.00038356,30]
[326728058,1715285439996,-157.06499759,0.00038421,7]
[326728059,1715285440006,-150.0,0.00038426,2]
[326728060,1715285440016,-669.0129911,0.00038782,2]
[326728061,1715285440026,-157.60469398,0.00038831,7]
[326728062,1715285440036,-500.0,0.00038842,10]
[326728063,1715285440046,-813.42826374,0.00038899,7]
[326728064,1715285440057,-883.16357776,0.000389,30]
[326728065,1715285440067,-156.09733477,0.00038931,7]
[326728066,1715285440077,-363.8942825,0.00039051,2]
[326728067,1715285440087,-500.0,0.0003939,10]
[326728068,1715285440097,-181.49625513,0.0003969,2]
[326728069,1715285440108,-1000.0,0.000397,2]
[326728070,1715285440118,-328.49,0.000397,3]
[326728071,1715285440127,-328.49,0.000397,3]
[326728072,1715285440137,-328.49,0.000397,3]
[326728073,1715285440148,-328.49,0.000397,3]
[326728074,1715285440158,-328.49,0.000397,3]
[326728075,1715285440168,-328.49,0.000397,3]
[326728078,1715285440178,-328.49,0.000397,3]
[326728081,1715285440188,-328.49,0.000397,3]
[326728083,1715285440199,-328.49,0.000397,3]
[326728084,1715285440209,-328.49,0.000397,3]
[326728085,1715285440218,-328.49,0.000397,3]
[326728086,1715285440228,-328.49,0.000397,3]
[326728087,1715285440238,-328.49,0.000397,3]
[326728088,1715285440248,-328.49,0.000397,3]
[326728089,1715285440258,-328.49,0.000397,3]
[326728090,1715285440269,-328.49,0.000397,3]
[326728091,1715285440281,-328.49,0.000397,3]
[326728092,1715285440291,-328.49,0.000397,3]
[326728093,1715285440301,-328.49,0.000397,3]
[326728094,1715285440311,-328.49,0.000397,3]
[326728095,1715285440321,-500.0,0.000397,2]
[326728096,1715285440332,-157.6555605,0.00039742,7]
[326728097,1715285440589,-591.13574367,0.0003984,10]